[Event "*** Titled Tuesday Blitz"]
[Site "Chess.com"]
[Date "2021.03.02"]
[Round "2"]
[White "FMLorneTwitch"]
[Black "Blitzking642"]
[Result "1-0"]
[WhiteElo "2372"]
[BlackElo "2349"]
[TimeControl "180+1"]
[EndTime "10:17:05 PST"]
[Termination "FMLorneTwitch won by resignation"]

1. d4 {[%clk 0:03:00.9]} 1... Nf6 {[%clk 0:02:59.4]} 2. Bg5 {[%clk 0:03:00.4]}
2... d5 {[%clk 0:02:58.5]} 3. Bxf6 {[%clk 0:03:00]} 3... exf6 {[%clk 0:02:57.2]}
4. e3 {[%clk 0:02:59.7]} 4... c6 {[%clk 0:02:55.6]} 5. c4 {[%clk 0:02:59.8]}
5... dxc4 {[%clk 0:02:54.9]} 6. Bxc4 {[%clk 0:03:00.7]} 6... Bd6 {[%clk
0:02:53.6]} 7. Ne2 {[%clk 0:02:57.8]} 7... Nd7 {[%clk 0:02:51]} 8. Nbc3 {[%clk
0:02:57.1]} 8... f5 {[%clk 0:02:48.5]} 9. Qc2 {[%clk 0:02:42.4]} 9... O-O {[%clk
0:02:37.6]} 10. h4 {[%clk 0:02:25.3]} 10... Nf6 {[%clk 0:02:37.5]} 11. h5 {[%clk
0:02:24.1]} 11... Qe7 {[%clk 0:02:29.6]} 12. Bd3 {[%clk 0:02:17.6]} 12... g6
{[%clk 0:01:57.7]} 13. hxg6 {[%clk 0:02:13.1]} 13... fxg6 {[%clk 0:01:56.8]} 14.
O-O-O {[%clk 0:02:12.6]} 14... Be6 {[%clk 0:01:55.8]} 15. Kb1 {[%clk 0:02:04.8]}
15... b5 {[%clk 0:01:38.7]} 16. Nf4 {[%clk 0:01:56.2]} 16... Bf7 {[%clk
0:01:29]} 17. Rde1 {[%clk 0:01:42.8]} 17... b4 {[%clk 0:01:26]} 18. Na4 {[%clk
0:01:41.5]} 18... Rab8 {[%clk 0:01:12.4]} 19. b3 {[%clk 0:01:35.9]} 19... Nd5
{[%clk 0:01:04.6]} 20. Bc4 {[%clk 0:01:29.6]} 20... Nc3+ {[%clk 0:00:54.4]} 21.
Nxc3 {[%clk 0:01:28.3]} 21... Bxc4 {[%clk 0:00:54.9]} 22. Na4 {[%clk 0:01:20.6]}
22... Bb5 {[%clk 0:00:49.9]} 23. Nc5 {[%clk 0:01:15.8]} 23... Bxc5 {[%clk
0:00:47.9]} 24. dxc5 {[%clk 0:01:15.1]} 24... Rfd8 {[%clk 0:00:45.2]} 25. Rd1
{[%clk 0:01:14]} 25... Qf6 {[%clk 0:00:42.2]} 26. Rxd8+ {[%clk 0:01:07]} 26...
Rxd8 {[%clk 0:00:41.4]} 27. Rd1 {[%clk 0:01:07.4]} 27... a5 {[%clk 0:00:37.6]}
28. Rd2 {[%clk 0:00:49.3]} 28... a4 {[%clk 0:00:27.5]} 29. Rxd8+ {[%clk
0:00:44.6]} 29... Qxd8 {[%clk 0:00:28.4]} 30. bxa4 {[%clk 0:00:45.1]} 30... Ba6
{[%clk 0:00:28.5]} 31. Qb3+ {[%clk 0:00:41.5]} 31... Kh8 {[%clk 0:00:29]} 32.
Qxb4 {[%clk 0:00:36.1]} 32... Qd1+ {[%clk 0:00:28.4]} 33. Kb2 {[%clk 0:00:36.3]}
33... Bd3 {[%clk 0:00:22.5]} 34. Qd4+ {[%clk 0:00:35.2]} 1-0

[Event "*** Titled Tuesday Blitz"]
[Site "Chess.com"]
[Date "2021.03.02"]
[Round "2"]
[White "FeketeBarika"]
[Black "eCztery"]
[Result "1-0"]
[WhiteElo "2216"]
[BlackElo "2403"]
[TimeControl "180+1"]
[EndTime "10:17:07 PST"]
[Termination "FeketeBarika won by resignation"]

1. Nf3 {[%clk 0:02:34.9]} 1... c5 {[%clk 0:02:54.7]} 2. c4 {[%clk 0:02:33.6]}
2... Nc6 {[%clk 0:02:54.3]} 3. g3 {[%clk 0:02:33.6]} 3... g6 {[%clk 0:02:54.8]}
4. Bg2 {[%clk 0:02:33.6]} 4... Bg7 {[%clk 0:02:55.4]} 5. O-O {[%clk 0:02:33.4]}
5... f5 {[%clk 0:02:55.9]} 6. Nc3 {[%clk 0:02:33.3]} 6... Nf6 {[%clk 0:02:56.5]}
7. d4 {[%clk 0:02:32.5]} 7... cxd4 {[%clk 0:02:55.9]} 8. Nxd4 {[%clk 0:02:33.4]}
8... O-O {[%clk 0:02:56.1]} 9. Nc2 {[%clk 0:02:29.9]} 9... Kh8 {[%clk
0:02:56.1]} 10. Bg5 {[%clk 0:02:29.3]} 10... h6 {[%clk 0:02:55.2]} 11. Bf4
{[%clk 0:02:27.1]} 11... e5 {[%clk 0:02:54.6]} 12. Bd2 {[%clk 0:02:26.1]} 12...
d6 {[%clk 0:02:49.6]} 13. b3 {[%clk 0:02:24.4]} 13... Be6 {[%clk 0:02:47.9]} 14.
Rc1 {[%clk 0:02:24.1]} 14... Rc8 {[%clk 0:02:44.8]} 15. Nd5 {[%clk 0:02:23.1]}
15... Bxd5 {[%clk 0:02:40.7]} 16. cxd5 {[%clk 0:02:24]} 16... Ne7 {[%clk
0:02:41]} 17. Bb4 {[%clk 0:02:22.2]} 17... e4 {[%clk 0:02:30.3]} 18. Nd4 {[%clk
0:02:19.8]} 18... Rxc1 {[%clk 0:02:21.6]} 19. Qxc1 {[%clk 0:02:18.4]} 19... Qb6
{[%clk 0:02:19.1]} 20. Ne6 {[%clk 0:02:10.2]} 20... Qxb4 {[%clk 0:02:18.7]} 21.
Nxf8 {[%clk 0:02:10]} 21... Bxf8 {[%clk 0:02:19.6]} 22. Qc7 {[%clk 0:02:03.8]}
22... Nfxd5 {[%clk 0:02:16.6]} 23. Qd8 {[%clk 0:02:02.6]} 23... Kg7 {[%clk
0:02:04.8]} 24. Rd1 {[%clk 0:01:59.5]} 24... Qb6 {[%clk 0:01:41]} 25. Qd7 {[%clk
0:01:57.4]} 25... Qc6 {[%clk 0:01:37.5]} 26. Qe6 {[%clk 0:01:55.3]} 26... Nc3
{[%clk 0:01:30]} 27. Rxd6 {[%clk 0:01:51.3]} 27... Nxe2+ {[%clk 0:01:11.4]} 28.
Kf1 {[%clk 0:01:51]} 28... Qb5 {[%clk 0:00:16.9]} 29. Qf6+ {[%clk 0:01:41.5]}
29... Kg8 {[%clk 0:00:10.4]} 30. Rd8 {[%clk 0:01:40.6]} 30... Nd4+ {[%clk
0:00:09.9]} 31. Kg1 {[%clk 0:01:39.5]} 31... Ne6 {[%clk 0:00:08.5]} 32. Qxe6+
{[%clk 0:01:38.6]} 32... Kg7 {[%clk 0:00:09.1]} 33. Rd7 {[%clk 0:01:32.2]} 33...
Qc5 {[%clk 0:00:07.5]} 34. Bf1 {[%clk 0:01:32.3]} 34... e3 {[%clk 0:00:07.1]}
35. fxe3 {[%clk 0:01:31.2]} 35... g5 {[%clk 0:00:06.7]} 36. Bc4 {[%clk 0:01:30]}
36... h5 {[%clk 0:00:03.1]} 37. Qf7+ {[%clk 0:01:26.8]} 37... Kh6 {[%clk
0:00:03.7]} 38. Qxf8+ {[%clk 0:01:12.5]} 38... Kg6 {[%clk 0:00:04.2]} 39. Qxe7
{[%clk 0:01:10.1]} 1-0

[Event "*** Titled Tuesday Blitz"]
[Site "Chess.com"]
[Date "2021.03.02"]
[Round "2"]
[White "Gusarov91"]
[Black "QuintilianoR"]
[Result "1/2-1/2"]
[WhiteElo "2508"]
[BlackElo "2720"]
[TimeControl "180+1"]
[EndTime "10:17:08 PST"]
[Termination "Game drawn by repetition"]

1. d4 {[%clk 0:03:00.9]} 1... d5 {[%clk 0:02:59.4]} 2. Nf3 {[%clk 0:03:01.2]}
2... Nf6 {[%clk 0:02:58.9]} 3. c4 {[%clk 0:03:01.4]} 3... c6 {[%clk 0:02:58.4]}
4. Nc3 {[%clk 0:03:01]} 4... dxc4 {[%clk 0:02:58.5]} 5. a4 {[%clk 0:03:01.1]}
5... Bf5 {[%clk 0:02:58.7]} 6. e3 {[%clk 0:03:01.4]} 6... e6 {[%clk 0:02:58.8]}
7. Bxc4 {[%clk 0:03:02]} 7... Bb4 {[%clk 0:02:59.1]} 8. O-O {[%clk 0:03:02.6]}
8... O-O {[%clk 0:02:59.3]} 9. Qe2 {[%clk 0:03:03.1]} 9... Nbd7 {[%clk
0:02:59.4]} 10. e4 {[%clk 0:03:02.5]} 10... Bg6 {[%clk 0:02:59.9]} 11. e5 {[%clk
0:03:02.7]} 11... Nd5 {[%clk 0:02:58.8]} 12. Bd2 {[%clk 0:02:57.5]} 12... Be7
{[%clk 0:02:47.9]} 13. Nxd5 {[%clk 0:02:43.7]} 13... cxd5 {[%clk 0:02:46.2]} 14.
Bd3 {[%clk 0:02:44.1]} 14... Nb8 {[%clk 0:02:34.5]} 15. Bxg6 {[%clk 0:02:40.5]}
15... fxg6 {[%clk 0:02:35.4]} 16. Qb5 {[%clk 0:02:39.2]} 16... Qd7 {[%clk
0:02:25.4]} 17. Qxd7 {[%clk 0:02:35.1]} 17... Nxd7 {[%clk 0:02:26.3]} 18. Rfc1
{[%clk 0:02:35.4]} 18... Rfc8 {[%clk 0:02:25.6]} 19. Kf1 {[%clk 0:02:16]} 19...
h6 {[%clk 0:02:24.7]} 20. Ke2 {[%clk 0:02:15.9]} 20... Kf7 {[%clk 0:02:24.2]}
21. Kd3 {[%clk 0:02:15.8]} 21... Rc6 {[%clk 0:02:07.2]} 22. Rc3 {[%clk
0:02:00.2]} 22... Rac8 {[%clk 0:02:01.5]} 23. Rac1 {[%clk 0:01:59.7]} 23... g5
{[%clk 0:01:50.3]} 24. h3 {[%clk 0:01:57.8]} 24... a6 {[%clk 0:01:45.2]} 25.
Rxc6 {[%clk 0:01:55.2]} 25... Rxc6 {[%clk 0:01:44.6]} 26. b3 {[%clk 0:01:38.9]}
26... Rxc1 {[%clk 0:01:42.7]} 27. Bxc1 {[%clk 0:01:38.7]} 27... Nb8 {[%clk
0:01:41.3]} 28. g4 {[%clk 0:01:29.6]} 28... Nc6 {[%clk 0:01:40.4]} 29. Bd2
{[%clk 0:01:29.9]} 29... b5 {[%clk 0:01:37.9]} 30. axb5 {[%clk 0:01:29.3]} 30...
axb5 {[%clk 0:01:38.8]} 31. Ne1 {[%clk 0:01:28.9]} 31... Kg6 {[%clk 0:01:20.5]}
32. Nc2 {[%clk 0:01:26.7]} 32... Kf7 {[%clk 0:01:20.3]} 33. f3 {[%clk 0:01:25]}
33... Ke8 {[%clk 0:01:14.1]} 34. Bc1 {[%clk 0:01:20.2]} 34... Kd7 {[%clk
0:01:10.3]} 35. Ba3 {[%clk 0:01:20.2]} 35... b4 {[%clk 0:01:08.2]} 36. Bc1
{[%clk 0:01:19.9]} 36... Na5 {[%clk 0:01:08.1]} 37. Na1 {[%clk 0:01:16.5]} 37...
Kc6 {[%clk 0:01:07.7]} 38. Bd2 {[%clk 0:01:16.7]} 38... Kb5 {[%clk 0:01:07.7]}
39. Be1 {[%clk 0:01:15.8]} 39... Bd8 {[%clk 0:01:05.6]} 40. Bd2 {[%clk
0:01:15.9]} 40... Bb6 {[%clk 0:01:03.3]} 41. Be1 {[%clk 0:01:13.5]} 41... Nc6
{[%clk 0:01:00]} 42. Nc2 {[%clk 0:01:13]} 42... Bd8 {[%clk 0:00:57.7]} 43. Bd2
{[%clk 0:01:12.9]} 43... Be7 {[%clk 0:00:57.7]} 44. Be1 {[%clk 0:01:12.6]} 44...
Na5 {[%clk 0:00:57.8]} 45. Na1 {[%clk 0:01:12.6]} 45... Nc6 {[%clk 0:00:51.3]}
46. Nc2 {[%clk 0:01:12.2]} 46... Nd8 {[%clk 0:00:51.5]} 47. Bd2 {[%clk
0:01:11.7]} 47... Nf7 {[%clk 0:00:51.6]} 48. Be1 {[%clk 0:01:10.3]} 48... Nh8
{[%clk 0:00:51.8]} 49. Bg3 {[%clk 0:01:10.1]} 49... Ng6 {[%clk 0:00:51.4]} 50.
Ne3 {[%clk 0:01:09.3]} 50... Bd8 {[%clk 0:00:40.2]} 51. Nc2 {[%clk 0:01:08.6]}
51... Ne7 {[%clk 0:00:38.9]} 52. Be1 {[%clk 0:01:06.9]} 52... Nc6 {[%clk
0:00:39.4]} 53. Bd2 {[%clk 0:01:05.7]} 53... Be7 {[%clk 0:00:39.8]} 54. Be1
{[%clk 0:01:05.7]} 1/2-1/2

[Event "*** Titled Tuesday Blitz"]
[Site "Chess.com"]
[Date "2021.03.02"]
[Round "2"]
[White "Stouuf"]
[Black "Alniro4"]
[Result "1-0"]
[WhiteElo "2625"]
[BlackElo "2312"]
[TimeControl "180+1"]
[EndTime "10:17:11 PST"]
[Termination "Stouuf won on time"]

1. e4 {[%clk 0:03:00.9]} 1... e5 {[%clk 0:02:58.4]} 2. Nf3 {[%clk 0:02:58.6]}
2... Nf6 {[%clk 0:02:57.6]} 3. Nxe5 {[%clk 0:02:52.2]} 3... d6 {[%clk
0:02:56.9]} 4. Nf3 {[%clk 0:02:52]} 4... Nxe4 {[%clk 0:02:56.8]} 5. Nc3 {[%clk
0:02:52.7]} 5... Nf6 {[%clk 0:02:53.9]} 6. d4 {[%clk 0:02:51.1]} 6... d5 {[%clk
0:02:53.6]} 7. Bd3 {[%clk 0:02:51.1]} 7... Be7 {[%clk 0:02:49.3]} 8. O-O {[%clk
0:02:51.5]} 8... O-O {[%clk 0:02:47.3]} 9. h3 {[%clk 0:02:51.9]} 9... Re8 {[%clk
0:02:40.3]} 10. Re1 {[%clk 0:02:51.3]} 10... Nbd7 {[%clk 0:02:38.9]} 11. Ne5
{[%clk 0:02:48.8]} 11... Nf8 {[%clk 0:02:34.8]} 12. Ne2 {[%clk 0:02:47.5]} 12...
Ne6 {[%clk 0:02:29.5]} 13. c3 {[%clk 0:02:46.1]} 13... c5 {[%clk 0:02:18.4]} 14.
Be3 {[%clk 0:02:37.9]} 14... cxd4 {[%clk 0:02:15.4]} 15. Nxd4 {[%clk 0:02:37.5]}
15... Bd6 {[%clk 0:02:06.3]} 16. Nef3 {[%clk 0:02:25.9]} 16... Bd7 {[%clk
0:01:39.6]} 17. Qc2 {[%clk 0:02:22]} 17... Nc5 {[%clk 0:01:30.3]} 18. Bf5 {[%clk
0:02:12]} 18... Nce4 {[%clk 0:01:16.6]} 19. Rad1 {[%clk 0:02:08.5]} 19... Bxf5
{[%clk 0:00:58.2]} 20. Nxf5 {[%clk 0:02:09.4]} 20... Bf8 {[%clk 0:00:43.5]} 21.
Bd4 {[%clk 0:02:08.8]} 21... Qa5 {[%clk 0:00:35.7]} 22. a3 {[%clk 0:01:51.1]}
22... Qa6 {[%clk 0:00:29.4]} 23. Nd2 {[%clk 0:01:38]} 23... Rac8 {[%clk
0:00:15.2]} 24. Nxe4 {[%clk 0:01:36.6]} 24... Nxe4 {[%clk 0:00:12.6]} 25. Ne3
{[%clk 0:01:17.3]} 25... Qc6 {[%clk 0:00:10.2]} 26. Qe2 {[%clk 0:01:15.8]} 26...
a6 {[%clk 0:00:08.5]} 27. Qf3 {[%clk 0:01:15.9]} 27... g6 {[%clk 0:00:05.6]} 28.
Rd3 {[%clk 0:01:15.5]} 28... f5 {[%clk 0:00:04.9]} 29. Red1 {[%clk 0:01:15]}
29... Rcd8 {[%clk 0:00:01]} 30. g4 {[%clk 0:00:42.8]} 1-0

[Event "*** Titled Tuesday Blitz"]
[Site "Chess.com"]
[Date "2021.03.02"]
[Round "2"]
[White "StockholmMissile"]
[Black "champ2005"]
[Result "0-1"]
[WhiteElo "2596"]
[BlackElo "3009"]
[TimeControl "180+1"]
[EndTime "10:17:12 PST"]
[Termination "champ2005 won by resignation"]

1. d4 {[%clk 0:03:00.9]} 1... Nf6 {[%clk 0:02:59]} 2. c4 {[%clk 0:03:01]} 2...
g6 {[%clk 0:02:58.7]} 3. Nc3 {[%clk 0:03:00.2]} 3... Bg7 {[%clk 0:02:59.1]} 4.
e4 {[%clk 0:03:00]} 4... d6 {[%clk 0:02:59.5]} 5. h3 {[%clk 0:03:00]} 5... O-O
{[%clk 0:02:58.2]} 6. Be3 {[%clk 0:02:59.7]} 6... c5 {[%clk 0:02:53.8]} 7. Nf3
{[%clk 0:02:58]} 7... cxd4 {[%clk 0:02:52.9]} 8. Nxd4 {[%clk 0:02:58.9]} 8... b6
{[%clk 0:02:51.4]} 9. Be2 {[%clk 0:02:55.7]} 9... Bb7 {[%clk 0:02:51.7]} 10. f3
{[%clk 0:02:55.8]} 10... Nh5 {[%clk 0:02:45.7]} 11. O-O {[%clk 0:02:54.6]} 11...
Ng3 {[%clk 0:02:45.1]} 12. Re1 {[%clk 0:02:53]} 12... Nxe2+ {[%clk 0:02:45.2]}
13. Qxe2 {[%clk 0:02:51.7]} 13... Nd7 {[%clk 0:02:44.5]} 14. Red1 {[%clk
0:02:33.5]} 14... Rc8 {[%clk 0:02:43.2]} 15. Rac1 {[%clk 0:02:31.6]} 15... a6
{[%clk 0:02:41]} 16. Nd5 {[%clk 0:02:28.1]} 16... e6 {[%clk 0:02:40.4]} 17. Nc3
{[%clk 0:02:26.1]} 17... Qe7 {[%clk 0:02:34.3]} 18. Nb3 {[%clk 0:01:55.9]} 18...
Ne5 {[%clk 0:01:59.5]} 19. Na4 {[%clk 0:01:43.1]} 19... Nxc4 {[%clk 0:01:49.2]}
20. Rxc4 {[%clk 0:01:42]} 20... Rxc4 {[%clk 0:01:50.1]} 21. Qxc4 {[%clk
0:01:42.5]} 21... b5 {[%clk 0:01:50.7]} 22. Qb4 {[%clk 0:01:42.6]} 22... bxa4
{[%clk 0:01:48.6]} 23. Na5 {[%clk 0:01:42.3]} 23... Ba8 {[%clk 0:01:43.3]} 24.
Qxd6 {[%clk 0:01:07.5]} 24... Qxd6 {[%clk 0:01:12.9]} 25. Rxd6 {[%clk
0:01:08.4]} 25... Bxb2 {[%clk 0:01:13]} 26. Rxa6 {[%clk 0:01:07.7]} 26... Rc8
{[%clk 0:01:13.5]} 27. Bh6 {[%clk 0:00:39.1]} 27... f5 {[%clk 0:00:56.5]} 28.
exf5 {[%clk 0:00:37]} 28... exf5 {[%clk 0:00:48.2]} 29. Nc4 {[%clk 0:00:30.6]}
29... Rxc4 {[%clk 0:00:29.8]} 30. Rxa8+ {[%clk 0:00:29.8]} 30... Kf7 {[%clk
0:00:30.5]} 31. Ra7+ {[%clk 0:00:22.9]} 31... Ke6 {[%clk 0:00:30.9]} 32. Bf8
{[%clk 0:00:17.6]} 32... Bd4+ {[%clk 0:00:30.3]} 0-1

[Event "*** Titled Tuesday Blitz"]
[Site "Chess.com"]
[Date "2021.03.02"]
[Round "2"]
[White "Rap_woyska"]
[Black "AryanTari"]
[Result "0-1"]
[WhiteElo "2556"]
[BlackElo "2905"]
[TimeControl "180+1"]
[EndTime "10:17:12 PST"]
[Termination "AryanTari won by resignation"]

1. c4 {[%clk 0:02:57.6]} 1... e6 {[%clk 0:02:56.6]} 2. Nf3 {[%clk 0:02:56.3]}
2... d5 {[%clk 0:02:56.7]} 3. e3 {[%clk 0:02:56.5]} 3... Nf6 {[%clk 0:02:56.2]}
4. b3 {[%clk 0:02:56.6]} 4... g6 {[%clk 0:02:55.7]} 5. Bb2 {[%clk 0:02:57]} 5...
Bg7 {[%clk 0:02:56]} 6. Nc3 {[%clk 0:02:54.2]} 6... O-O {[%clk 0:02:56.2]} 7. d4
{[%clk 0:02:50.2]} 7... c6 {[%clk 0:02:45.7]} 8. Bd3 {[%clk 0:02:45.7]} 8...
Nbd7 {[%clk 0:02:45.6]} 9. O-O {[%clk 0:02:45.9]} 9... b6 {[%clk 0:02:36.7]} 10.
Qe2 {[%clk 0:02:34.6]} 10... Bb7 {[%clk 0:02:34.7]} 11. Rad1 {[%clk 0:02:34.8]}
11... Qc7 {[%clk 0:02:26.7]} 12. e4 {[%clk 0:02:24.9]} 12... dxe4 {[%clk
0:02:26.6]} 13. Nxe4 {[%clk 0:02:25.8]} 13... Nxe4 {[%clk 0:02:13.3]} 14. Bxe4
{[%clk 0:02:25.5]} 14... Nf6 {[%clk 0:02:13.7]} 15. Bc2 {[%clk 0:02:22.4]} 15...
c5 {[%clk 0:02:13.9]} 16. dxc5 {[%clk 0:02:13.5]} 16... Qxc5 {[%clk 0:02:14.8]}
17. Ne5 {[%clk 0:02:12.1]} 17... Rfd8 {[%clk 0:02:03.7]} 18. h3 {[%clk
0:01:47.5]} 18... Qe7 {[%clk 0:01:52.8]} 19. Rxd8+ {[%clk 0:01:31.4]} 19... Rxd8
{[%clk 0:01:53.7]} 20. Rd1 {[%clk 0:01:31.8]} 20... Rxd1+ {[%clk 0:01:43.3]} 21.
Qxd1 {[%clk 0:01:31.8]} 21... Qc7 {[%clk 0:01:27.3]} 22. Qe2 {[%clk 0:01:06.7]}
22... Nd7 {[%clk 0:01:22.4]} 23. Nd3 {[%clk 0:01:01.5]} 23... Bxb2 {[%clk
0:01:21.9]} 24. Nxb2 {[%clk 0:01:02.4]} 24... Qc6 {[%clk 0:01:18.9]} 25. f3
{[%clk 0:01:02.5]} 25... Qc5+ {[%clk 0:01:16.8]} 26. Qf2 {[%clk 0:01:02.8]}
26... Qe5 {[%clk 0:01:15.9]} 27. Nd3 {[%clk 0:00:35.5]} 27... Qc3 {[%clk
0:01:16]} 28. Nf4 {[%clk 0:00:24.4]} 28... Ne5 {[%clk 0:01:07.1]} 29. Be4 {[%clk
0:00:18.1]} 29... Qc1+ {[%clk 0:01:02.2]} 30. Kh2 {[%clk 0:00:09.5]} 30... Qxf4+
{[%clk 0:00:50.4]} 31. g3 {[%clk 0:00:10]} 31... Nxf3+ {[%clk 0:00:39]} 0-1

[Event "*** Titled Tuesday Blitz"]
[Site "Chess.com"]
[Date "2021.03.02"]
[Round "2"]
[White "MalyDominator"]
[Black "MarcoRiehle"]
[Result "1/2-1/2"]
[WhiteElo "2489"]
[BlackElo "2688"]
[TimeControl "180+1"]
[EndTime "10:17:12 PST"]
[Termination "Game drawn - insufficient material"]

1. e4 {[%clk 0:03:00.9]} 1... e5 {[%clk 0:02:59.5]} 2. Nf3 {[%clk 0:02:58]} 2...
Nf6 {[%clk 0:02:59.3]} 3. Nxe5 {[%clk 0:02:57.5]} 3... Nxe4 {[%clk 0:02:59.2]}
4. Qe2 {[%clk 0:02:47.2]} 4... Qe7 {[%clk 0:02:57.9]} 5. Qxe4 {[%clk 0:02:46.4]}
5... d6 {[%clk 0:02:57.8]} 6. d4 {[%clk 0:02:46.6]} 6... dxe5 {[%clk 0:02:57.7]}
7. Qxe5 {[%clk 0:02:47.1]} 7... Qxe5+ {[%clk 0:02:57.2]} 8. dxe5 {[%clk
0:02:48]} 8... Bf5 {[%clk 0:02:57.4]} 9. Bd3 {[%clk 0:02:45.2]} 9... Bxd3 {[%clk
0:02:56]} 10. cxd3 {[%clk 0:02:46.1]} 10... Nc6 {[%clk 0:02:56.4]} 11. f4 {[%clk
0:01:45.2]} 11... Nb4 {[%clk 0:02:56.1]} 12. Na3 {[%clk 0:01:42]} 12... Nxd3+
{[%clk 0:02:55.7]} 13. Ke2 {[%clk 0:01:41.3]} 13... Nxc1+ {[%clk 0:02:56.6]} 14.
Raxc1 {[%clk 0:01:39.4]} 14... Bxa3 {[%clk 0:02:57.5]} 15. bxa3 {[%clk
0:01:38.3]} 15... O-O-O {[%clk 0:02:58.4]} 16. Rhd1 {[%clk 0:01:34.7]} 16...
Rhe8 {[%clk 0:02:45]} 17. Kf3 {[%clk 0:01:33.6]} 17... Re6 {[%clk 0:02:42.7]}
18. Rxd8+ {[%clk 0:01:32.7]} 18... Kxd8 {[%clk 0:02:42.6]} 19. Rd1+ {[%clk
0:01:29.9]} 19... Ke7 {[%clk 0:02:42.3]} 20. Rc1 {[%clk 0:01:21.7]} 20... Kd7
{[%clk 0:02:42]} 21. Rd1+ {[%clk 0:01:21.2]} 21... Kc8 {[%clk 0:02:34]} 22. Ke4
{[%clk 0:01:18.7]} 22... Ra6 {[%clk 0:02:31.9]} 23. Rd3 {[%clk 0:01:18.3]} 23...
g6 {[%clk 0:02:28.9]} 24. g4 {[%clk 0:01:14.3]} 24... Ra4+ {[%clk 0:02:28.7]}
25. Kf3 {[%clk 0:01:14.2]} 25... a5 {[%clk 0:02:16.2]} 26. f5 {[%clk 0:01:13.1]}
26... gxf5 {[%clk 0:02:16.5]} 27. gxf5 {[%clk 0:01:13.2]} 27... Rh4 {[%clk
0:02:17.1]} 28. Kg3 {[%clk 0:01:11.9]} 28... Re4 {[%clk 0:02:14.1]} 29. e6
{[%clk 0:01:03.5]} 29... f6 {[%clk 0:01:57]} 30. Rd7 {[%clk 0:00:57.4]} 30... c5
{[%clk 0:01:52]} 31. Rxh7 {[%clk 0:00:55]} 31... c4 {[%clk 0:01:51.3]} 32. Kf3
{[%clk 0:00:35.4]} 32... Re5 {[%clk 0:01:50.8]} 33. e7 {[%clk 0:00:25.3]} 33...
c3 {[%clk 0:01:29.5]} 34. Rh8+ {[%clk 0:00:14.3]} 34... Kd7 {[%clk 0:01:29.6]}
35. e8=Q+ {[%clk 0:00:14.3]} 35... Rxe8 {[%clk 0:01:29]} 36. Rxe8 {[%clk
0:00:14.6]} 36... Kxe8 {[%clk 0:01:25.2]} 37. Ke3 {[%clk 0:00:14.9]} 37... b5
{[%clk 0:01:21.9]} 38. Kd3 {[%clk 0:00:13.4]} 38... b4 {[%clk 0:01:22.3]} 39.
axb4 {[%clk 0:00:10.6]} 39... axb4 {[%clk 0:01:23.2]} 40. a3 {[%clk 0:00:09]}
40... bxa3 {[%clk 0:01:24.1]} 41. Kxc3 {[%clk 0:00:09.2]} 41... Kd7 {[%clk
0:01:25]} 42. Kb3 {[%clk 0:00:09.3]} 42... Kd6 {[%clk 0:01:25.9]} 43. Kxa3
{[%clk 0:00:08.7]} 43... Ke5 {[%clk 0:01:26.8]} 44. Kb3 {[%clk 0:00:09.2]} 44...
Kxf5 {[%clk 0:01:27.7]} 45. Kc3 {[%clk 0:00:09.7]} 45... Ke4 {[%clk 0:01:26.7]}
46. h4 {[%clk 0:00:07.5]} 46... f5 {[%clk 0:01:26]} 47. h5 {[%clk 0:00:07.6]}
47... f4 {[%clk 0:01:26.5]} 48. h6 {[%clk 0:00:08]} 48... f3 {[%clk 0:01:25.5]}
49. h7 {[%clk 0:00:08.3]} 49... f2 {[%clk 0:01:26.2]} 50. h8=Q {[%clk
0:00:08.6]} 50... f1=Q {[%clk 0:01:27.1]} 51. Qe8+ {[%clk 0:00:08.8]} 51... Kf3
{[%clk 0:01:26.6]} 52. Qf8+ {[%clk 0:00:09.1]} 52... Ke2 {[%clk 0:01:26.9]} 53.
Qxf1+ {[%clk 0:00:10]} 53... Kxf1 {[%clk 0:01:27.8]} 1/2-1/2

[Event "*** Titled Tuesday Blitz"]
[Site "Chess.com"]
[Date "2021.03.02"]
[Round "2"]
[White "publicaccountcze"]
[Black "Tactictic"]
[Result "0-1"]
[WhiteElo "2216"]
[BlackElo "2435"]
[TimeControl "180+1"]
[EndTime "10:17:13 PST"]
[Termination "Tactictic won on time"]

1. d4 {[%clk 0:03:00.9]} 1... Nf6 {[%clk 0:02:59.7]} 2. c4 {[%clk 0:03:00.7]}
2... e6 {[%clk 0:03:00]} 3. Nc3 {[%clk 0:03:01.1]} 3... Bb4 {[%clk 0:02:57.9]}
4. Qc2 {[%clk 0:03:00.2]} 4... O-O {[%clk 0:02:56.9]} 5. e4 {[%clk 0:02:59.8]}
5... d5 {[%clk 0:02:50.3]} 6. cxd5 {[%clk 0:02:56.4]} 6... exd5 {[%clk
0:02:47.4]} 7. e5 {[%clk 0:02:56.2]} 7... Ne4 {[%clk 0:02:45.7]} 8. Bd3 {[%clk
0:02:55.9]} 8... Qh4 {[%clk 0:02:37.6]} 9. g3 {[%clk 0:02:47.8]} 9... Qh5 {[%clk
0:02:33.4]} 10. Bxe4 {[%clk 0:02:37.2]} 10... dxe4 {[%clk 0:02:33.5]} 11. Qxe4
{[%clk 0:02:33.6]} 11... Nc6 {[%clk 0:02:33.5]} 12. Be3 {[%clk 0:02:08.4]} 12...
Bf5 {[%clk 0:02:24.8]} 13. Qf3 {[%clk 0:02:05]} 13... Bg4 {[%clk 0:02:19]} 14.
Qg2 {[%clk 0:02:01.8]} 14... Rad8 {[%clk 0:02:16.3]} 15. f3 {[%clk 0:01:54.2]}
15... Be6 {[%clk 0:02:06.3]} 16. Ne2 {[%clk 0:01:52.2]} 16... Bc4 {[%clk
0:02:00.5]} 17. Rd1 {[%clk 0:01:07.3]} 17... Nxe5 {[%clk 0:01:50]} 18. dxe5
{[%clk 0:00:58.7]} 18... Qxe5 {[%clk 0:01:50.9]} 19. Kf2 {[%clk 0:00:52.5]}
19... Rfe8 {[%clk 0:01:48.3]} 20. Rxd8 {[%clk 0:00:46.8]} 20... Qxe3+ {[%clk
0:01:47.1]} 21. Kf1 {[%clk 0:00:34.6]} 21... Rxd8 {[%clk 0:01:34.2]} 22. Qf2
{[%clk 0:00:32.9]} 22... Qxf2+ {[%clk 0:00:49.9]} 23. Kxf2 {[%clk 0:00:31.7]}
23... Bc5+ {[%clk 0:00:48.4]} 24. Kg2 {[%clk 0:00:27.6]} 24... Rd2 {[%clk
0:00:47.5]} 25. Re1 {[%clk 0:00:16.5]} 25... Rxb2 {[%clk 0:00:46.2]} 26. Rd1
{[%clk 0:00:09.9]} 26... Bxe2 {[%clk 0:00:45.2]} 27. Rd8+ {[%clk 0:00:09]} 27...
Bf8 {[%clk 0:00:45.2]} 28. Nd5 {[%clk 0:00:08.5]} 28... Bc4+ {[%clk 0:00:45.2]}
29. Kh3 {[%clk 0:00:07.9]} 29... Bxd5 {[%clk 0:00:46.1]} 30. Rxd5 {[%clk
0:00:07]} 30... Rxa2 {[%clk 0:00:46.6]} 31. Rd7 {[%clk 0:00:05.8]} 31... Rc2
{[%clk 0:00:44.3]} 0-1